Cogmind - Beta 13 @@@ ROGUE MODE // 2024.04.25 @ 21:19:37 Player: CanadianCogs Result: Destroyed by Y-45 Defender with Beam Rifle Performance ------------- Evolutions (1) 500 Regions Visited (2) 400 Robots Destroyed (28) 140 Value Destroyed (500) 500 Prototype IDs (3) 60 Alien Tech Used (0) 0 Bonus (0) 0 TOTAL SCORE: 1600 Bonus ------- None Cogmind --------- Core Integrity 0/400 Matter 240/300 Energy 95/100 System Corruption 0% Temperature Cool (27) Movement Core (150) Ox2 Location -9/Materials Parts ------- > --- POWER (1) -------- (None) > --- PROPULSION (2) --- (None) > --- UTILITY (2) ------ (None) > --- WEAPON (4) ------- Hammer Hammer Hammer Hammer > --- INVENTORY (5) ---- EM Shotgun EM Shotgun EM Shotgun EM Shotgun Datajack Peak State ------------ > --- POWER ------------ Ion Engine > --- PROPULSION ------- Light Treads Improved Flight Unit > --- UTILITY ---------- Improved Terrain Scanner Seismic Detector > --- WEAPON ----------- Mining Laser Mining Laser Mining Laser Mining Laser > --- INVENTORY -------- Light Treads EM Pulse Gun EM Pulse Gun EM Pulse Gun [Rating: 13] Favorites ----------- Power Ion Engine Engine Ion Engine Propulsion Light Treads Treads Light Treads Leg Aluminum Leg Hover Unit Backup Propulsion I Flight Unit Improved Flight Unit Utility Improved Terrain Scanner Device Improved Terrain Scanner Protection Backup Plating I Weapon Backup Laser I Energy Gun Backup Laser I Ballistic Gun Light Assault Rifle Special Weapon Mining Laser Impact Weapon Hammer Build | -11 -10 -9 ------- Run | Yrd Mat Mat Slots Evolved 2 | . . 2 Power . | . . . Propulsion . | . . . Utility . | . . . Weapon 2 | . . 2 Parts Attached 34 | 7 15 12 Power 3 | 1 2 . Engine 3 | 1 2 . Core . | . . . Reactor . | . . . Propulsion 8 | 2 4 2 Treads 5 | 2 2 1 Leg 2 | . 2 . Wheel . | . . . Hover . | . . . Flight 1 | . . 1 Utility 5 | 2 3 . Device 5 | 2 3 . Storage . | . . . Processor . | . . . Hackware . | . . . Protection . | . . . Artifact . | . . . Weapon 18 | 2 6 10 Energy Gun 5 | . 2 3 Energy Cannon . | . . . Ballistic Gun 4 | 2 2 . Ballistic Cannon . | . . . Launcher . | . . . Special Weapon 4 | . 2 2 Impact Weapon 5 | . . 5 Slashing Weapon . | . . . Piercing Weapon . | . . . Special Melee Weapon . | . . . Unidentified Prototypes 1 | . . 1 Parts Lost 16 | . 6 10 Power 2 | . 1 1 Propulsion 3 | . 2 1 Utility 4 | . 2 2 Weapon 7 | . 1 6 Highest Loss Streak 10 | . 5 10 To Critical Strikes . | . . . Average Slot Usage (%) 85 | . 92 61 Engine 11 | . 13 5 Treads 15 | . 17 8 Leg 3 | . 4 . Hover 3 | . 5 . Device 18 | . 20 13 Protection 3 | . 4 . Energy Gun 16 | . 20 . Ballistic Gun 3 | . 4 . Special Weapon 5 | . 1 20 Impact Weapon 2 | . . 12 Naked Turns 5 | . 2 3 Heaviest Build 11 | 9 11 11 Greatest Support 40 | 40 40 40 Greatest Overweight (x) 2 | . . 2 Average Overweight (x) . | . . . Largest Inventory Capacity 5 | 5 5 5 Average Capacity 5 | 5 5 5 Most Carried 5 | 5 5 5 Average Carried 3 | 2 3 3 Final Capacity 5 | 5 5 5 Final Carried 5 | 3 5 5 Class Distribution -------------------- 85% | Mutant 7% | Scavenger-Mutant 6% | Pyromaniac-Skirmisher Dominant Class ---------------- Mutant | -10/Materials Mutant | -9/Materials Resources | -11 -10 -9 ----------- Run | Yrd Mat Mat Matter Collected 505 | 330 115 60 Remotely . | . . . Salvage Created 691 | 144 442 105 Parts 49 | 16 30 3 Haulers Intercepted . | . . . Recyclers Shooed . | . . . Parts Field Recycled . | . . . Retrieved Matter . | . . . Parts Self-Destructed . | . . . Prevented . | . . . Kills | -11 -10 -9 ------- Run | Yrd Mat Mat Combat Hostiles Destroyed 19 | . 17 2 Guns 17 | . 17 . Classes Destroyed 5 | 1 2 2 Builder 1 | . . 1 Tunneler 7 | 7 . . Watcher 1 | . . 1 Swarmer 9 | . 9 . Grunt 10 | . 8 2 Best Kill Streak 6 | 3 6 3 Combat Bots Only 6 | . 6 2 Max Kills in Single Turn 2 | 1 2 1 Gunslinging 1 | . 1 . Exploded . | . . . Melee . | . . . Uniques/NPCs Destroyed . | . . . Combat | -11 -10 -9 -------- Run | Yrd Mat Mat Hostile Shots Fired 158 | . 92 66 Missed 40 | . 23 17 Damage Taken 1546 | . 666 880 Core 581 | . 171 410 Absorbed by Shields . | . . . Regen/Repaired (Parts) 2 | . 2 . Core Remaining (%) 65 | 100 31 . Volleys Fired 85 | 30 48 7 Largest 3 | 2 2 3 Hottest 300 | 40 60 300 Shots Fired 162 | 60 89 13 Gun 153 | 60 89 4 Cannon . | . . . Launcher . | . . . Special 9 | . . 9 Kinetic 60 | 60 . . Thermal 98 | . 89 9 Explosive . | . . . Electromagnetic 4 | . . 4 Robot Hit Streak 16 | 8 16 3 Robot Miss Streak 3 | 2 3 2 Penetration Max . | . . . Secondary Targets 6 | . 6 . Max Gunslinging Chain 1 | . 1 . Shots Hit Robots 122 | 38 60 24 Core Hits 43 | 15 26 2 Critical Kills . | . . . Critical Parts Destroyed 3 | . . 3 Critical Strikes 4 | . . 4 Smash 4 | . . 4 Melee Attacks 21 | . . 21 Impact 21 | . . 21 Slashing . | . . . Piercing . | . . . Sneak Attacks . | . . . Combat Hostiles . | . . . Follow-up Attacks 8 | . . 8 Damage Inflicted 1412 | 320 549 543 Guns 920 | 320 549 51 Cannons . | . . . Explosions . | . . . Melee 348 | . . 348 Ramming . | . . . Kinetic 320 | 320 . . Thermal 693 | . 549 144 Explosive . | . . . Electromagnetic 51 | . . 51 Impact 348 | . . 348 Slashing . | . . . Piercing . | . . . Highest Corruption . | . . . Average Corruption . | . . . Corruption Purged . | . . . Corruption Blocked . | . . . Overload Shots . | . . . Overflow Damage 78 | . . 78 Projectiles . | . . . Explosions . | . . . Melee 78 | . . 78 Knockbacks 2 | . . 2 Impact 2 | . . 2 Kinetic . | . . . Secondary . | . . . Self-Inflicted Damage . | . . . Shots . | . . . Rammed . | . . . Targets Rammed . | . . . Kicked . | . . . Crushed . | . . . Highest Temperature 246 | . 153 246 Average Temperature 85 | . 52 151 Received Heat Transfer 465 | . 234 231 Effects 3 | . . 3 Energy Bleed 1 | . . 1 Interference 2 | . . 2 Siege Activations . | . . . Robots Corrupted 1 | . . 1 Combat Hostiles 1 | . . 1 Parts Fried 4 | . . 4 Impact Corruptions 5 | . . 5 Robots Melted . | . . . Combat Hostiles . | . . . Parts Melted 9 | . 9 . Heat Transferred 2557 | . 2257 300 Parts Sabotaged . | . . . Parts Stolen . | . . . Parts Stripped . | . . . Power Chain Reactions . | . . . Alert | -11 -10 -9 ------- Run | Yrd Mat Mat Peak Influence 378 | 35 378 160 Initial 159 | . 22 159 Average 119 | 20 169 133 Maximum Alert Level 1 | . 1 . Low Security (%) 79 | 100 62 100 Level 1 20 | . 37 . Level 2 . | . . . Level 3 . | . . . Level 4 . | . . . Level 5 . | . . . High Security . | . . . Max Security . | . . . Squads Dispatched 4 | . 4 . Investigation 4 | . 4 . Extermination . | . . . Reinforcement . | . . . Assault . | . . . Garrison . | . . . Intercept . | . . . Searches Triggered . | . . . Construction Impeded . | . . . Haulers Reinforced . | . . . Active Scanning Responses . | . . . Cargo Convoy Interrupts . | . . . Stealth | -11 -10 -9 --------- Run | Yrd Mat Mat Distress Signals 4 | . 3 1 Communications Jammed . | . . . Distress Signals . | . . . Times Spotted 27 | . 21 6 Peak Tracking Total 5 | . 5 3 Tactical Retreats 4 | . 3 1 Traps | -11 -10 -9 ------- Run | Yrd Mat Mat Traps Triggered 1 | . 1 . Indirectly . | . . . Trap Hack Attempts . | . . . Triggered . | . . . Disarmed . | . . . Reprogrammed . | . . . Reused . | . . . Traps Extracted . | . . . Installed . | . . . Triggered . | . . . Machines | -11 -10 -9 ---------- Run | Yrd Mat Mat Machines Disabled . | . . . Max in Single Turn . | . . . Machines Repaired . | . . . Machines Dismantled . | . . . Machines Sabotaged . | . . . Overloaded Fab Kills . | . . . Hacking | -11 -10 -9 --------- Run | Yrd Mat Mat Machines Accessed 4 | . 4 . Terminals 2 | . 2 . Fabricators . | . . . Repair Stations 1 | . 1 . Recycling Units 1 | . 1 . Scanalyzers . | . . . Garrison Access . | . . . Total Hacks 14 | . 14 . Successful 9 | . 9 . Failed 5 | . 5 . Catastrophic . | . . . Database Lockouts . | . . . Manual 6 | . 6 . Terminals 7 | . 7 . Fabricators . | . . . Repair Stations 4 | . 4 . Recycling Units 3 | . 3 . Scanalyzers . | . . . Garrison Access . | . . . Terminal Hacks 1 | . 1 . Prototype ID Bank 1 | . 1 . Fabricator Hacks . | . . . Repair Station Hacks 3 | . 3 . Scan Component 1 | . 1 . Repair 1 | . 1 . Refit 1 | . 1 . Recycling Unit Hacks 1 | . 1 . Retrieve Components 1 | . 1 . Scanalyzer . | . . . Garrison Access Hacks . | . . . Unauthorized Hacks 4 | . 4 . Terminals 3 | . 3 . Track 1 | . 1 . Botnet 2 | . 2 . Fabricators . | . . . Repair Stations . | . . . Recycling Units 1 | . 1 . Tunnel 1 | . 1 . Scanalyzers . | . . . Garrison Access . | . . . Data Cores Recovered . | . . . Used . | . . . Hacking Detections 3 | . 3 . Full Trace Events 3 | . 3 . Feedback Events . | . . . Feedback Blocked . | . . . Robot Schematics Acquired . | . . . Robots Built . | . . . Authchips . | . . . Time . | . . . Total Robot Build Rating . | . . . Part Schematics Acquired . | . . . Parts Built . | . . . Authchips . | . . . Time . | . . . Total Part Build Rating . | . . . Parts Repaired 1 | . 1 . Time 38 | . 38 . Parts Recycled . | . . . Recycled Matter . | . . . Retrieved Matter . | . . . Retrieved Components 10 | . 10 . Parts Scanalyzed . | . . . Part Schematics Acquired . | . . . Parts Damaged . | . . . Bothacking | -11 -10 -9 ------------ Run | Yrd Mat Mat Used RIF Installer . | . . . Robots Hacked . | . . . Non-combat . | . . . Combat . | . . . Robot Hacks Applied . | . . . Relay Couplers Released . | . . . Fabnet Peak Effective % . | . . . Robots Rewired . | . . . Allies Hacked . | . . . Hacks Repelled . | . . . Allies | -11 -10 -9 -------- Run | Yrd Mat Mat Total Allies . | . . . Largest Group . | . . . Highest-Rated Group . | . . . Highest-Rated Ally . | . . . Total Orders . | . . . Ally Attacks . | . . . Total Damage . | . . . Kills . | . . . Allies Corrupted . | . . . Allies Melted . | . . . Intel | -11 -10 -9 ------- Run | Yrd Mat Mat Robot Analysis Total . | . . . Derelict Logs Recovered . | . . . Drone Launches . | . . . Drone Recoveries . | . . . Exploration | -11 -10 -9 ------------- Run | Yrd Mat Mat Turns Passed 1283 | 382 703 198 Spaces Moved 562 | 174 320 68 Core 46 | 13 6 27 Treads 390 | 161 188 41 Legs 60 | . 60 . Wheels . | . . . Hover 66 | . 66 . Flight . | . . . Fastest Speed 50 | 50 50 50 Average Speed 139 | 151 133 136 Slowest Speed 160 | 160 160 160 Overloaded Moves . | . . . Propulsion Burnouts . | . . . Robots Hopped . | . . . Cave-ins Triggered . | . . . Exploration Rate (%) 21 | 6 50 7 Regions Visited 2 Branch Regions . Pre-discovered Areas 1 | . 1 . Known Exits Taken . | . . . Unknown Exits Taken 2 | 1 1 . Scrap Searched . | . . . Spaces Dug . | . . . Terrain Destroyed 2 | . . 2 Melee . | . . . Projectile 2 | . . 2 AOE . | . . . Terrain Rammed . | . . . Walls Destroyed . | . . . Machines Disabled . | . . . Actions | -11 -10 -9 --------- Run | Yrd Mat Mat Total 872 | 244 509 119 Wait 133 | 24 102 7 Move 560 | 173 319 68 Hop . | . . . Pick Up 32 | 10 11 11 Fast Attach 5 | . 5 . Attach 21 | 7 3 11 Detach . | . . . Swap 8 | . 7 1 Drop 15 | . 14 1 Fire 85 | 30 48 7 Melee 13 | . . 13 Ram . | . . . Kick . | . . . Crush . | . . . Escape Stasis . | . . . Rewire . | . . . Trap . | . . . Miscellaneous . | . . . Route ------- -11/Scrapyard -10/Materials (discovered 2 exits: [*Mat x2]) -9/Materials History --------- Turn | Location | Event 8 | -11/Scrapyard | Discovered new exit (range 15) 383 | -11/Scrapyard | Entered Materials 384 | -10/Materials | Build established: Mutant 530 | -10/Materials | Repaired Imp. Terrain Scanner 711 | -10/Materials | Lost 5 parts (1p2n2u) 841 | -10/Materials | Discovered new exit (range 16) 911 | -10/Materials | Core integrity fell below 50% 962 | -10/Materials | Discovered new exit (range 15) 1086 | -10/Materials | Entered another Materials area 1086 | -9/Materials | Evolved 2 slots: Weapon x2 1208 | -9/Materials | Core integrity fell below 50% 1241 | -9/Materials | Lost 10 parts (1p1n2u6w) 1273 | -9/Materials | Core integrity fell below 20% 1284 | -9/Materials | Destroyed by Y-45 Defender with Beam Rifle Last Messages --------------- 01246_ Acquired EM Shotgun. 01248_ K-01 Serf collects debris. 01251_ Acquired EM Shotgun. 01252_ K-01 Serf collects debris. 01254_ W-16 Scout sends out distress signal. 01255_ K-01 Serf collects debris. 01257_ Hammer follow-up attack on W-16 Scout. 01257_ W-16 Scout suffers critical hit (Smash). 01257_ Destroyed Visual Processing Unit. 01257_ Destroyed Sensor Array. 01257_ W-16 Scout system corrupted by crushing effect. 01257_ Hammer follow-up attack on W-16 Scout. 01258_ W-16 Scout system terminally corrupted. 01258_ Lgt. Ion Engine fried. 01258_ Signal Interpreter fried. 01259_ K-01 Serf collects debris. 01263_ Hammer follow-up attack on Y-45 Defender. 01280_ Y-45 Defender suffers critical hit (Smash). 01280_ Hammer follow-up attack on Y-45 Defender. 01284_ Critical hit (Burn: +37). Map ----- +----------------------------------------------------+ | ?????????????????????????????????????????????????? | | ?????????????????????????????????????????????????? | | ?????????????????????????????????????????????????? | | ?????????????????????????????????????????????????? | | ?????????????????????????????????????????????????? | | ?????????????????????????????????????????????????? | | ?????????????????????????????????????????????????? | | ?????????????????????????????????????????????????? | | ?????????????????????????????????????????????????? | | ?????????????????????????????????????????????????? | | ?????????????????????????????????????????????????? | | ?????????????????????????????????????????????????? | | ?????????????????????????????????????????????????? | | ?????????????????????????????????????????????????? | | ?????????????????????????????????????????????????? | | ?????????????????????????????????????????????????? | | ?????????????????????????????????????????????????? | | ?????????????????????????????????????????????????? | | ?????????????????????????????????????????????????? | | ??????????? ???????####??????????????????????????? | | ??????????????? ???# ??????????????????????????? | | ??????????????? ???? =?????????????????????????? | | ???????? ???????????? =?????????????????????????? | | ?????????????????????? ???????????????????????? | | ?????????????????#######Y####????????????????????? | | ?????????????????# @ #######??????????????? | | ?????????????????# r a u / ???????? | | ?????????????????# % #######??????????????? | | ?????????????????# ######+###??????????????????? | | ??????# ????????# # #??????????????????? | | ?????## ######## # #???#??????????????? | | ?????# # #??????????????????? | | ???? #% #??????????????????? | | ???? +%% #??????????????????? | | ???? # #?#????????????????? | | ???? #] #??????????????????? | | ???? ######## # #??????????????????? | | ??"??""?? ???????# # #??????????????????? | | ??????????????? ?# ##########??????????????????? | | ???????"?????????# #???????????????????????????? | | ?????????????????# #????????#??????????????????? | | ????? ???????????# #???????????????????????????? | | ????????? ???????# #??##????#?#????????????????? | | ?????#??########## #??#?##?????????????????????? | | ???#????# # #???????#???????????????????? | | ????????# """ # #???????????????????????????? | | ????????#! """ # #????????#??????????????????? | | ????????#!% """ # #???????????????????????????? | | ?????#??#! # #???????????????????????????? | | ????????# """ + #?????? ????????????????????? | +----------------------------------------------------+ Best States ------------- Heat Dissipation 28 Energy Generation 10 Energy Capacity 250 Matter Stores 300 Matter Capacity 300 Sight Range 16 Terrain Scan Range 16 Terrain Scan Density 10 Armor Coverage 160 Evasion (%) 55 Recoil Reduction 2 Item Schematics ----------------- None Robot Schematics ------------------ None Fabricated ------------ Nothing Alien Tech Used ----------------- None Achievements -------------- Power Corrupts Challenges ------------ None Game ------ Seed AssaultGuidanceChainsword Manual? 0 Play Time 00:17:58 Cumulative 20.9 hours Start 2024.04.25 @ 18:19:27 End 2024.04.25 @ 21:19:37 Sessions 3 Manual Loads 0 Difficulty Rogue Special Mode None Game No. 31 Rogue 31 Adventurer 0 Explorer 0 Win Type - Total 0 Types 0/0/0/0/0/0/0/0/0 Lore% 18 Gallery% 22 Achievement% 21 Wizard Run 0 Options --------- Layout 0 ASCII 0 Keyboard 0 Movement Mouse Keybinds 0 Fullscreen 2 Font 18/SmallcapsGlow Map View 38x25 Zoom Use 96% Tactical HUD 1 Map Filters NONE Filters NONE Steam 1 RUN: 430d002a-915b-43c3-a556-ecf863011e86